bitfinex/quotes_BTCUSD_20250616
["timestamp","ask_amount","ask_price","bid_price","bid_amount"]
[1750036001371,5.24696613,105590.0,105580.0,0.01979316]
[1750036001651,5.24696613,105590.0,105580.0,0.002]
[1750036001836,5.24696613,105590.0,105580.0,0.01979313]
[1750036002062,5.24696613,105590.0,105580.0,0.01979314]
[1750036002604,5.24696613,105590.0,105580.0,0.01979313]
[1750036002808,5.24696613,105590.0,105580.0,0.002]
[1750036003584,5.24696613,105590.0,105580.0,0.01979325]
[1750036004026,5.24696613,105590.0,105580.0,0.002]
[1750036004770,5.24696613,105590.0,105580.0,0.01979325]
[1750036004992,5.24696613,105590.0,105580.0,0.002]
[1750036005220,5.24696613,105590.0,105580.0,0.01979326]
[1750036005431,5.24696613,105590.0,105580.0,0.002]
[1750036005663,5.24696613,105590.0,105580.0,0.01979327]
[1750036006320,5.24696613,105590.0,105580.0,0.002]
[1750036006564,5.24696613,105590.0,105580.0,0.01979327]
[1750036006805,5.24696613,105590.0,105580.0,0.002]
[1750036007062,5.24696613,105590.0,105580.0,0.01979327]
[1750036007301,5.24696613,105590.0,105580.0,0.002]
[1750036007541,5.24696613,105590.0,105580.0,0.01979327]
[1750036008035,5.24696613,105590.0,105580.0,0.01979326]
[1750036008036,4.75626431,105590.0,105580.0,0.01979326]
[1750036008433,4.31581985,105590.0,105580.0,0.0339]
[1750036008704,4.19109209,105590.0,105580.0,0.08479038]
[1750036008962,3.85109209,105590.0,105580.0,0.08972004]
[1750036009229,3.85109209,105590.0,105580.0,0.10750908]
[1750036009550,3.85109209,105590.0,105580.0,0.08972004]
[1750036009551,4.19109209,105590.0,105580.0,0.08972004]
[1750036009758,4.19109209,105590.0,105580.0,0.10750846]
[1750036010010,4.19109209,105590.0,105580.0,0.10750919]
[1750036010429,4.19109209,105590.0,105580.0,0.10750921]
[1750036010846,4.19109209,105590.0,105580.0,0.08972004]
[1750036011288,4.19109209,105590.0,105580.0,0.1075092]
[1750036011710,4.19109209,105590.0,105580.0,0.12820103]
[1750036011932,4.19109209,105590.0,105580.0,0.11041188]
[1750036012163,4.19109209,105590.0,105580.0,0.12820089]
[1750036012370,4.19109209,105590.0,105580.0,0.12820088]
[1750036012586,4.19109209,105590.0,105580.0,0.11041188]
[1750036012790,4.19109209,105590.0,105580.0,0.12820089]
[1750036012999,4.19109209,105590.0,105580.0,0.11041188]
[1750036013845,4.19109209,105590.0,105580.0,0.08972004]
[1750036019610,4.5862957,105590.0,105580.0,0.05662004]
[1750036019826,4.6193957,105590.0,105580.0,0.002]
[1750036020424,4.62886548,105590.0,105580.0,0.002]
[1750036020624,4.77514752,105590.0,105580.0,0.002]
[1750036020839,4.78461775,105590.0,105580.0,0.002]
[1750036021039,4.77514743,105590.0,105580.0,0.002]
[1750036021426,4.75620724,105590.0,105580.0,0.002]
[1750036021631,4.32043385,105590.0,105580.0,0.002]
[1750036021873,4.19109209,105590.0,105580.0,0.0321]
[1750036024245,4.19109209,105590.0,105580.0,0.48113281]
[1750036024447,4.19109209,105590.0,105580.0,0.0859292]
[1750036024651,4.6163957,105590.0,105580.0,0.0247292]
[1750036024851,4.71263746,105590.0,105580.0,0.002]
[1750036025085,4.72210733,105590.0,105580.0,0.002]
[1750036025286,4.8680971,105590.0,105580.0,0.002]
[1750036025462,4.77194788,105590.0,105580.0,0.002]
[1750036025687,5.13130051,105590.0,105580.0,0.002]
[1750036025891,5.15937157,105590.0,105580.0,0.002]
[1750036026094,5.12183091,105590.0,105580.0,0.002]
[1750036026243,4.91347831,105590.0,105580.0,0.002]
[1750036026467,5.13138096,105590.0,105580.0,0.002]
[1750036026649,5.14085074,105590.0,105580.0,0.002]
[1750036027050,3.818881,105580.0,105560.0,0.3293]
[1750036027260,3.818881,105580.0,105560.0,0.38432994]
[1750036027261,0.34,105570.0,105560.0,0.38432994]
[1750036028476,0.34014157,105570.0,105560.0,0.38432994]
[1750036029682,0.34114157,105570.0,105560.0,0.38732994]
[1750036030139,0.34114157,105570.0,105560.0,0.08852994]
[1750036033415,0.34114157,105570.0,105560.0,0.05622994]
[1750036033847,0.34114157,105570.0,105560.0,0.02572994]
[1750036033848,4.55522618,105570.0,105560.0,0.02572994]
[1750036034088,4.58732618,105570.0,105560.0,0.02572994]
[1750036034298,4.59679776,105570.0,105560.0,0.02572994]
[1750036034508,4.58732618,105570.0,105560.0,0.02572994]
[1750036034717,4.58732618,105570.0,105560.0,0.003]
[1750036035137,4.58732618,105570.0,105560.0,0.01189326]
[1750036035354,5.18810989,105570.0,105560.0,0.01189326]
[1750036035564,1.0303282,105560.0,105550.0,0.00703585]
[1750036035775,1.0303282,105560.0,105530.0,0.0637]
[1750036035776,4.158881,105540.0,105530.0,0.0637]
[1750036035992,4.158881,105540.0,105530.0,0.09531242]
[1750036036211,4.158881,105540.0,105530.0,0.09531243]
[1750036036851,4.158881,105540.0,105530.0,0.08641755]
[1750036037067,4.159881,105540.0,105530.0,0.09141755]
[1750036039683,4.159881,105540.0,105530.0,0.0687]
[1750036039923,5.15509883,105540.0,105530.0,0.005]
[1750036040146,3.818881,105510.0,105500.0,0.07436]
[1750036040368,3.818881,105510.0,105500.0,0.0652478]
[1750036040369,4.158881,105510.0,105500.0,0.0652478]
[1750036040663,4.158881,105510.0,105500.0,0.04256]
[1750036041141,4.18582887,105510.0,105500.0,0.04256]
[1750036041421,4.18582887,105510.0,105500.0,0.01006]
[1750036041422,4.91728392,105510.0,105500.0,0.01006]
[1750036041661,4.91742536,105510.0,105500.0,0.01892076]
[1750036041878,4.52222166,105510.0,105500.0,0.01892093]
[1750036042106,4.51274452,105510.0,105500.0,0.01892093]
[1750036042323,4.32318912,105510.0,105500.0,0.01892093]
[1750036042510,4.51574461,105510.0,105500.0,0.01992093]
[1750036042804,4.93938045,105510.0,105500.0,0.01106]
[1750036043023,5.21661615,105510.0,105500.0,0.01892103]
[1750036043245,5.06121615,105510.0,105500.0,0.01106]
[1750036043466,4.85753522,105510.0,105500.0,0.01106]
[1750036043697,5.15658961,105510.0,105500.0,0.01106]
[1750036043909,5.14711202,105510.0,105500.0,0.01106]
[1750036044426,4.95111202,105510.0,105500.0,0.01106]
[1750036044636,4.95111202,105510.0,105500.0,0.01006]
[1750036044637,5.14207202,105510.0,105500.0,0.01006]
[1750036045071,5.24322124,105510.0,105500.0,0.01106]
[1750036045292,4.93740302,105510.0,105500.0,0.01006]
[1750036045753,4.74444302,105510.0,105500.0,0.01106]
[1750036045961,4.94040302,105510.0,105500.0,0.01106]
[1750036046398,4.94040302,105510.0,105460.0,0.0324]
[1750036046399,0.00947957,105490.0,105460.0,0.0324]
[1750036046626,0.34,105470.0,105460.0,0.0324]
[1750036046847,0.34,105470.0,105460.0,0.04126356]
[1750036047065,0.34,105470.0,105460.0,0.04638993]
[1750036047286,0.34,105470.0,105460.0,0.47459305]
[1750036047547,3.609212,105480.0,105470.0,0.0309]
[1750036047774,0.36826702,105480.0,105470.0,0.00886305]
[1750036047987,3.98695877,105480.0,105470.0,0.00047208]
[1750036048204,3.98695868,105480.0,105470.0,0.00933524]
[1750036048432,3.98695868,105480.0,105470.0,0.00047208]
[1750036048648,3.98695868,105480.0,105470.0,0.00933544]
[1750036048649,3.97747902,105480.0,105470.0,0.00933544]
[1750036048852,3.97747902,105480.0,105470.0,0.00047208]
[1750036049063,3.97747902,105480.0,105470.0,0.00933569]
[1750036049247,3.97947902,105480.0,105470.0,0.00933569]
[1750036049739,3.97947902,105480.0,105470.0,0.00047208]
[1750036050166,3.97947902,105480.0,105470.0,0.00933555]
[1750036050381,0.002,105480.0,105470.0,0.46623868]
[1750036050633,0.002,105480.0,105470.0,0.5130993]
[1750036050805,0.002,105480.0,105470.0,0.81189907]
[1750036051046,0.002,105480.0,105470.0,0.80303659]
[1750036051265,0.002,105480.0,105470.0,0.75617569]
[1750036051696,0.002,105480.0,105470.0,0.76503805]
[1750036051904,0.002,105480.0,105470.0,0.76503804]
[1750036052114,0.002,105480.0,105470.0,0.36983443]
[1750036052374,0.002,105480.0,105470.0,0.38755971]
[1750036052643,0.002,105480.0,105470.0,0.38755988]
[1750036052882,0.002,105480.0,105470.0,0.36097208]
[1750036053112,0.002,105480.0,105470.0,0.36983485]
[1750036053323,0.002,105480.0,105470.0,0.37869747]
[1750036053535,0.002,105480.0,105470.0,0.47966794]
[1750036053746,0.002,105480.0,105470.0,0.37869723]
[1750036053988,0.002,105480.0,105470.0,0.36097208]
[1750036054204,0.002,105480.0,105470.0,0.37869729]
[1750036054413,0.002,105480.0,105470.0,0.36097208]
[1750036054623,0.002,105480.0,105470.0,0.37869733]
[1750036054838,0.002,105480.0,105470.0,0.36097208]
[1750036055050,0.002,105480.0,105470.0,0.37869734]
[1750036055904,3.951212,105480.0,105470.0,0.48609208]
[1750036056122,3.951212,105480.0,105470.0,0.34769817]
[1750036056339,3.951212,105480.0,105470.0,0.34769797]
[1750036056555,3.951212,105480.0,105470.0,0.31699819]
[1750036056775,3.951212,105480.0,105470.0,0.00047208]
[1750036057010,4.45204467,105480.0,105470.0,0.00047208]
[1750036057217,4.59076645,105480.0,105470.0,0.01819826]
[1750036057425,4.60024665,105480.0,105470.0,0.01819924]
[1750036057665,4.49461723,105480.0,105470.0,0.00933567]
[1750036057879,4.49461723,105480.0,105470.0,0.00047208]
[1750036058303,4.08045376,105480.0,105470.0,0.0181993]
[1750036058510,4.04745376,105480.0,105470.0,0.00047208]
[1750036058711,4.07589346,105480.0,105470.0,0.00047208]
[1750036058934,4.05693351,105480.0,105470.0,0.00047208]
[1750036059143,4.45213712,105480.0,105470.0,0.00047208]
[1750036059351,4.06641335,105480.0,105470.0,0.00047208]
[1750036059567,4.10729328,105480.0,105470.0,0.00047208]
[1750036059983,4.2034425,105480.0,105470.0,0.00047208]
[1750036060416,4.18448273,105480.0,105470.0,0.00047208]
[1750036060623,4.08833351,105480.0,105470.0,0.00047208]
[1750036061037,4.07885376,105480.0,105470.0,0.00047208]
[1750036061250,4.04745376,105480.0,105470.0,0.00047208]
[1750036061919,4.05693342,105480.0,105470.0,0.01819881]
[1750036062119,4.04745376,105480.0,105470.0,0.00047208]
[1750036062575,4.05693342,105480.0,105470.0,0.01819897]
[1750036062808,4.04745376,105480.0,105470.0,0.01819903]
[1750036063030,4.04745376,105480.0,105470.0,0.00047208]
[1750036063243,4.04745376,105480.0,105470.0,0.01819903]
[1750036063464,4.04745376,105480.0,105470.0,0.00047208]
[1750036063465,5.41540076,105480.0,105470.0,0.00047208]
[1750036063674,5.41540076,105480.0,105450.0,0.01]
[1750036063675,4.00815725,105460.0,105450.0,0.01]
[1750036063889,4.38439715,105460.0,105450.0,0.01]
[1750036064106,3.949212,105460.0,105450.0,0.01]
[1750036064530,3.949212,105460.0,105450.0,0.04]
[1750036064717,3.949212,105460.0,105450.0,0.11783361]
[1750036065186,3.97550712,105460.0,105450.0,0.11783361]
[1750036065394,0.02829512,105460.0,105450.0,0.46890361]
[1750036065601,0.02829512,105460.0,105450.0,0.49152969]
[1750036066618,0.02829512,105460.0,105450.0,0.0737]
[1750036066872,0.02829512,105460.0,105450.0,0.09634906]
[1750036067076,0.02629512,105460.0,105450.0,0.14657806]
[1750036067497,0.002,105460.0,105450.0,0.09734906]
[1750036068165,0.02900216,105460.0,105450.0,0.09734906]
[1750036069633,4.47875307,105460.0,105450.0,0.06296039]
[1750036069867,4.47875307,105460.0,105450.0,0.03464906]
[1750036069868,4.68736187,105460.0,105450.0,0.03464906]
[1750036070059,4.51668085,105460.0,105450.0,0.012]
[1750036070312,4.54878085,105460.0,105450.0,0.012]
[1750036070738,4.8230938,105460.0,105450.0,0.03271696]
[1750036070951,4.83763465,105460.0,105450.0,0.01]
[1750036071159,4.63002495,105460.0,105450.0,0.03371693]
[1750036071377,4.83863438,105460.0,105450.0,0.011]
[1750036071584,4.84811664,105460.0,105450.0,0.03371687]
[1750036071795,4.87618716,105460.0,105450.0,0.03371687]
[1750036072006,4.87618716,105460.0,105450.0,0.011]
[1750036073124,4.65847128,105460.0,105450.0,0.011]
[1750036073334,4.88625383,105460.0,105450.0,0.011]
[1750036073542,4.85722345,105460.0,105450.0,0.011]
[1750036073930,4.87677193,105460.0,105450.0,0.011]
[1750036075325,4.61621655,105460.0,105450.0,0.011]
[1750036075533,4.64452755,105460.0,105450.0,0.011]
[1750036075969,4.63504538,105460.0,105450.0,0.011]
[1750036076371,4.6154969,105460.0,105450.0,0.011]
[1750036076552,4.64295246,105460.0,105450.0,0.011]
[1750036076767,4.71103116,105460.0,105450.0,0.011]
[1750036077588,4.7015489,105460.0,105450.0,0.011]
[1750036078440,0.61808717,105450.0,105440.0,0.01613249]
[1750036078636,4.70591408,105450.0,105440.0,0.00806507]
[1750036078838,4.70591408,105450.0,105410.0,0.09490292]
[1750036078839,3.463768,105420.0,105410.0,0.09490292]
[1750036079044,3.463768,105420.0,105410.0,0.10381176]
[1750036079295,3.463768,105420.0,105410.0,0.10381179]
[1750036079508,3.463768,105420.0,105410.0,0.09490292]
[1750036079695,3.463768,105420.0,105410.0,0.10381179]
[1750036079938,3.463768,105420.0,105410.0,0.09490292]
[1750036080139,3.463768,105420.0,105410.0,0.10381188]
[1750036080292,0.00047121,105420.0,105410.0,0.09490292]
[1750036080495,0.00047121,105420.0,105410.0,0.10381183]
[1750036080840,0.00247121,105420.0,105410.0,0.10381183]
[1750036081045,0.00247121,105420.0,105410.0,0.09490292]
[1750036081260,0.11325382,105420.0,105410.0,0.04161186]
[1750036081472,3.68265618,105420.0,105410.0,0.01]
[1750036081683,3.68265609,105420.0,105410.0,0.01]
[1750036081908,3.70108604,105420.0,105410.0,0.01]
[1750036082417,3.71057118,105420.0,105410.0,0.01]
[1750036082649,3.70108604,105420.0,105410.0,0.01]
[1750036082883,3.71057109,105420.0,105410.0,0.01]
[1750036083128,4.06005641,105420.0,105410.0,0.01]
[1750036083364,4.6966571,105420.0,105410.0,0.01]
[1750036083611,4.6966571,105420.0,105410.0,0.00896]
[1750036083612,4.68717178,105420.0,105410.0,0.00896]
[1750036083851,4.49745392,105420.0,105410.0,0.00896]
[1750036084100,4.86070287,105420.0,105410.0,0.00896]
[1750036084588,4.85121764,105420.0,105410.0,0.00896]
[1750036084591,4.85421764,105420.0,105410.0,0.00896]
[1750036084835,4.47323499,105420.0,105410.0,1e-08]
[1750036085085,4.59121947,105420.0,105410.0,1e-08]
[1750036085329,4.81476339,105420.0,105410.0,0.01782247]
[1750036085576,4.80527789,105420.0,105410.0,0.01782235]
[1750036086053,4.60387789,105420.0,105410.0,0.01782235]
[1750036086291,4.43186074,105420.0,105410.0,0.01782253]
[1750036086528,4.43186074,105420.0,105410.0,1e-08]
[1750036086529,4.90450711,105420.0,105410.0,1e-08]
[1750036086771,4.60387789,105420.0,105410.0,0.01782284]
[1750036087014,4.80351789,105420.0,105410.0,0.01782241]
[1750036087249,4.60687789,105420.0,105410.0,0.01782241]
[1750036087516,4.80651789,105420.0,105410.0,0.01782241]
[1750036087767,4.02669197,105420.0,105410.0,1e-08]
[1750036087987,4.15582187,105420.0,105410.0,0.01782171]
[1750036088244,4.17479269,105420.0,105410.0,0.01782126]
[1750036088491,4.17479269,105420.0,105410.0,1e-08]
[1750036088731,3.95542187,105420.0,105410.0,0.01782107]
[1750036088974,3.94593682,105420.0,105410.0,0.01782107]
[1750036089220,3.93139597,105420.0,105410.0,0.03160001]
[1750036089469,4.10469682,105420.0,105410.0,1e-08]
[1750036089701,4.10465682,105420.0,105410.0,1e-08]
[1750036089939,4.20080604,105420.0,105410.0,1e-08]
[1750036090410,4.21029109,105420.0,105410.0,1e-08]
[1750036090645,4.20080604,105420.0,105410.0,1e-08]
[1750036090886,4.10465682,105420.0,105410.0,1e-08]
[1750036091132,4.10465682,105420.0,105410.0,0.03160001]
[1750036091373,3.94593682,105420.0,105410.0,0.03160001]
[1750036091592,4.10465682,105420.0,105410.0,0.03160001]
[1750036092292,3.94593682,105420.0,105410.0,0.03160001]
[1750036092293,3.93139597,105420.0,105410.0,0.03160001]
[1750036092533,3.93139597,105420.0,105410.0,1e-08]
[1750036092534,4.20100604,105420.0,105410.0,1e-08]
[1750036092797,4.60095933,105420.0,105410.0,1e-08]
[1750036093072,4.62397374,105420.0,105410.0,1e-08]
[1750036093321,4.26196218,105420.0,105410.0,1e-08]
[1750036093535,4.26196209,105420.0,105410.0,1e-08]
[1750036093743,4.24299118,105420.0,105410.0,1e-08]
[1750036093974,4.24299118,105420.0,105380.0,0.01]
[1750036093975,0.34,105390.0,105380.0,0.01237203]
[1750036094192,4.28604776,105390.0,105380.0,0.01]
[1750036094412,3.91455061,105390.0,105380.0,0.01]
[1750036094624,3.832307,105390.0,105380.0,0.01]
[1750036094886,3.832307,105390.0,105380.0,0.072]
[1750036094887,0.368539,105390.0,105380.0,0.072]
[1750036095170,0.34,105390.0,105380.0,0.072]
[1750036095371,3.95250287,105390.0,105380.0,0.01]
[1750036095602,3.95250278,105390.0,105380.0,0.01]
[1750036095843,3.96299116,105390.0,105380.0,0.01]
[1750036096090,3.95250341,105390.0,105380.0,0.01]
[1750036096322,3.95450341,105390.0,105380.0,0.01]
[1750036096796,3.93552674,105390.0,105380.0,0.01]
[1750036097034,3.93352674,105390.0,105380.0,0.01]
[1750036097270,3.94301512,105390.0,105380.0,0.01]
[1750036097506,4.04216425,105390.0,105380.0,0.01]
[1750036097741,4.76243326,105390.0,105380.0,0.01]
[1750036097980,4.82613326,105390.0,105380.0,0.01]
[1750036098266,4.81664515,105390.0,105380.0,0.01]
[1750036098838,0.34,105360.0,105350.0,0.03036]
[1750036098841,3.803768,105360.0,105350.0,0.03036]
[1750036099315,3.803768,105360.0,105350.0,0.0392741]
[1750036099567,3.803768,105360.0,105350.0,0.03927409]
[1750036099798,3.8323003,105360.0,105350.0,0.07207419]
[1750036100032,3.8333003,105360.0,105350.0,0.07207417]
[1750036100265,3.83377122,105360.0,105350.0,0.06316]
[1750036100493,3.83377122,105360.0,105350.0,0.08098835]
[1750036100716,3.83377122,105360.0,105350.0,0.06316]
[1750036100941,3.871956,105360.0,105350.0,0.06316]
[1750036101176,3.871956,105360.0,105350.0,0.08098835]
[1750036101681,3.871956,105360.0,105350.0,0.08952241]
[1750036101916,0.068188,105360.0,105350.0,0.11626398]
[1750036102157,0.068188,105360.0,105350.0,0.08098722]
[1750036102390,0.068188,105360.0,105350.0,0.08990098]
[1750036102617,0.068188,105360.0,105350.0,0.08098732]
[1750036102851,0.068188,105360.0,105350.0,0.08990101]
[1750036103092,0.068188,105360.0,105350.0,0.08098734]
[1750036103340,0.068188,105360.0,105350.0,0.08990101]
[1750036103584,0.068188,105360.0,105350.0,0.11626332]
[1750036103850,0.068188,105360.0,105350.0,0.08990092]
[1750036104083,0.068188,105360.0,105350.0,0.08098727]
[1750036104324,0.068188,105360.0,105350.0,0.06316]
[1750036104569,0.068188,105360.0,105350.0,0.07207364]
[1750036105062,0.068188,105360.0,105350.0,0.06316]
[1750036105543,0.068188,105360.0,105350.0,0.07207364]
[1750036105782,0.068188,105360.0,105350.0,0.06316]
[1750036106030,0.068188,105360.0,105350.0,0.08990097]
[1750036106308,0.068188,105360.0,105350.0,0.07207372]
[1750036106512,0.07595576,105360.0,105350.0,0.06316]
[1750036106753,0.07595576,105360.0,105350.0,0.08098744]
[1750036106995,0.07595576,105360.0,105350.0,0.09881488]
[1750036107229,0.07595576,105360.0,105350.0,0.09881494]
[1750036107458,0.068188,105360.0,105350.0,0.08990125]
[1750036107698,0.068188,105360.0,105350.0,0.12149232]
[1750036108170,0.068188,105360.0,105350.0,0.11257856]
[1750036108621,0.408188,105360.0,105350.0,0.09475103]
[1750036108911,3.88728269,105360.0,105350.0,0.11257856]
[1750036109107,3.88728269,105360.0,105350.0,0.08990161]
[1750036109521,3.871956,105360.0,105350.0,0.08990158]
[1750036109730,3.871956,105360.0,105350.0,0.11258908]
[1750036110370,3.871956,105360.0,105350.0,0.09476122]
[1750036110575,3.871956,105360.0,105350.0,0.11258908]
[1750036111676,3.871956,105360.0,105350.0,0.09476122]
[1750036111885,4.66788893,105360.0,105350.0,0.02680233]
[1750036112099,4.84822366,105360.0,105350.0,0.0268038]
[1750036112315,4.86728176,105360.0,105350.0,0.02680404]
[1750036112541,4.707797,105360.0,105350.0,0.02480476]
[1750036112781,0.0088,105310.0,105300.0,0.02831133]
[1750036113006,3.67199801,105300.0,105290.0,0.08611726]
[1750036113228,4.11470652,105300.0,105280.0,0.03078145]
[1750036113448,4.11470652,105300.0,105270.0,0.08522627]
[1750036113449,3.83226307,105280.0,105270.0,0.08522627]
[1750036113667,3.82276413,105280.0,105270.0,0.0568423]
[1750036113887,4.41260135,105280.0,105270.0,0.0568423]
[1750036114145,4.49818129,105280.0,105270.0,0.0568423]
[1750036114359,4.49865104,105280.0,105270.0,0.0568423]
[1750036114580,0.34949956,105260.0,105250.0,0.0332]
[1750036114789,3.803768,105260.0,105250.0,0.0652]
[1750036116289,0.34,105260.0,105250.0,0.06491]
[1750036116507,0.342,105260.0,105250.0,0.06491]
[1750036116958,0.35770723,105260.0,105250.0,0.06491]
[1750036117174,0.342,105260.0,105250.0,0.06491]
[1750036117384,0.35085359,105260.0,105250.0,0.06491]
[1750036117593,0.35085361,105260.0,105250.0,0.06491]
[1750036117826,0.01085361,105260.0,105250.0,0.06491]
[1750036118035,0.03095644,105260.0,105250.0,0.071401]
[1750036118264,0.002,105260.0,105250.0,0.071401]
[1750036118902,0.002,105260.0,105250.0,0.44289815]
[1750036119375,0.002,105260.0,105250.0,0.53913991]
[1750036119803,0.002,105260.0,105250.0,0.16115176]
[1750036120015,3.46423835,105280.0,105270.0,0.0613]
[1750036120227,3.47309465,105280.0,105270.0,0.0613]
[1750036120447,3.81309481,105280.0,105270.0,0.0613]
[1750036120663,0.00047035,105280.0,105270.0,0.52903891]
[1750036120871,0.00047035,105280.0,105270.0,0.15754176]
[1750036121504,0.00932836,105280.0,105270.0,0.15754176]
[1750036121749,0.00932947,105280.0,105270.0,0.15754176]
[1750036121963,0.00933074,105280.0,105270.0,0.0613]
[1750036122175,0.00047035,105280.0,105270.0,0.0613]
[1750036122593,0.00347035,105280.0,105270.0,0.0623]
[1750036132684,0.00347035,105280.0,105270.0,0.0313]
[1750036141581,0.00347035,105280.0,105270.0,0.46053783]
[1750036141800,0.00347035,105280.0,105270.0,0.55440491]
[1750036142024,0.00347035,105280.0,105270.0,0.36638176]
[1750036142684,0.00347035,105280.0,105270.0,0.39479358]
[1750036142896,0.00347035,105280.0,105270.0,0.18715358]
[1750036143102,0.00347035,105280.0,105270.0,0.36622176]
[1750036143585,0.00347035,105280.0,105270.0,0.39463358]
[1750036144234,0.00347035,105280.0,105270.0,0.84653674]
[1750036144458,0.00347035,105280.0,105270.0,1.22919284]
[1750036144682,0.00347035,105280.0,105270.0,1.51824449]
[1750036144916,0.51664071,105340.0,105310.0,0.0323]
[1750036144917,3.463768,105330.0,105310.0,0.0323]
[1750036145134,3.53935736,105320.0,105310.0,0.23902]
[1750036145373,0.07558936,105320.0,105310.0,0.26972]
[1750036145820,3.463768,105330.0,105320.0,0.0618]
[1750036146050,3.463768,105340.0,105320.0,0.0618]
[1750036146287,3.463768,105340.0,105330.0,0.0308]
[1750036146498,0.34,105340.0,105330.0,0.0618]
[1750036146729,3.463768,105350.0,105330.0,0.0618]
[1750036146944,3.463768,105350.0,105330.0,0.09823618]
[1750036147163,3.463768,105340.0,105330.0,0.09823618]
[1750036147380,3.463768,105350.0,105340.0,0.0308]
[1750036147585,0.34886367,105350.0,105340.0,0.0308]
[1750036147792,0.34886379,105350.0,105340.0,0.0308]
[1750036148008,0.34886393,105350.0,105340.0,0.0308]
[1750036148221,0.34886386,105350.0,105340.0,0.0308]
[1750036148441,0.34862641,105350.0,105340.0,0.0308]
[1750036148662,0.33976253,105350.0,105340.0,0.0610397]
[1750036148879,0.34862656,105350.0,105340.0,0.06341275]
[1750036149095,0.34862656,105350.0,105340.0,0.0605]
[1750036149096,0.35462656,105350.0,105340.0,0.0605]
[1750036149523,0.01486402,105350.0,105340.0,0.0288]
[1750036149738,0.06778367,105350.0,105340.0,0.001]
[1750036150010,0.006,105350.0,105340.0,0.001]
[1750036150868,0.006,105350.0,105340.0,0.20552]
[1750036151091,0.006,105350.0,105340.0,0.23632]
[1750036151339,0.006,105350.0,105340.0,0.76759256]
[1750036151568,0.006,105350.0,105340.0,0.39609541]
[1750036152016,0.001,105360.0,105350.0,0.0314]
[1750036152233,0.001,105360.0,105350.0,0.12764176]
[1750036152475,0.001,105360.0,105350.0,0.33176176]
[1750036152708,0.001,105360.0,105350.0,0.36476176]
[1750036152940,0.001,105360.0,105350.0,0.41928807]
[1750036153189,0.001,105360.0,105350.0,0.37930261]
[1750036153402,0.001,105360.0,105350.0,0.3793921]
[1750036153873,0.001,105360.0,105350.0,0.26816949]
[1750036154300,0.001,105360.0,105350.0,0.3789521]
[1750036154521,0.001,105360.0,105350.0,0.46414109]
[1750036154739,0.002,105360.0,105350.0,0.84263824]
[1750036154955,0.002,105360.0,105350.0,1.03248161]
[1750036155185,0.002,105360.0,105350.0,1.08248161]
[1750036155403,0.002,105360.0,105350.0,1.1014653]
[1750036155624,0.002,105360.0,105350.0,1.46044845]
[1750036156277,0.002,105360.0,105350.0,1.45095692]
[1750036156513,0.001,105360.0,105350.0,1.44395692]
[1750036156955,0.001,105360.0,105350.0,1.45344845]
[1750036157175,0.02853,105420.0,105370.0,0.0487]
[1750036157392,3.463768,105410.0,105400.0,0.0157]
[1750036157611,0.03,105440.0,105400.0,0.25387167]
[1750036157612,3.463768,105420.0,105400.0,0.25387167]
[1750036158077,3.463768,105420.0,105400.0,0.22087167]
[1750036158286,3.463768,105420.0,105400.0,0.2028]
[1750036158505,3.466768,105420.0,105390.0,0.033]
[1750036158748,3.463768,105410.0,105390.0,0.14434176]
[1750036158941,3.463768,105410.0,105380.0,0.06104085]
[1750036159155,3.463768,105410.0,105400.0,0.001]
[1750036159361,3.463768,105410.0,105380.0,0.15728261]
[1750036159578,3.227648,105400.0,105380.0,0.16499547]
[1750036159789,3.227648,105400.0,105390.0,0.001]
[1750036160835,3.227648,105400.0,105370.0,0.1280953]
[1750036161042,3.227648,105400.0,105370.0,0.42613706]
[1750036161261,3.228648,105400.0,105390.0,0.003]
[1750036161712,0.001,105400.0,105390.0,0.003]
[1750036161921,3.227648,105400.0,105380.0,0.05157215]
[1750036162131,0.001,105400.0,105380.0,0.05157215]
[1750036162346,0.001,105400.0,105390.0,0.20116]
[1750036162557,0.001,105400.0,105390.0,0.34660176]
[1750036162775,0.001,105400.0,105390.0,0.36114261]
[1750036164147,0.004,105400.0,105390.0,0.32804261]
[1750036164349,0.004,105400.0,105390.0,0.33204261]
[1750036164564,0.001,105400.0,105390.0,0.35453831]
[1750036164774,0.005,105400.0,105390.0,0.37003831]
[1750036165183,0.005,105400.0,105390.0,0.4515]
[1750036165386,0.004,105400.0,105390.0,0.4485]
[1750036165639,3.227648,105410.0,105400.0,0.0151]
[1750036165849,3.23652305,105410.0,105400.0,0.0151]
[1750036166054,3.23652291,105410.0,105400.0,0.0151]
[1750036166261,3.227648,105410.0,105400.0,0.0151]
[1750036166410,0.00887496,105410.0,105400.0,0.0151]
[1750036166607,0.0088749,105410.0,105400.0,0.0151]
[1750036166809,3.23652295,105410.0,105400.0,0.0151]
[1750036167015,0.00887499,105410.0,105400.0,0.0151]
[1750036167344,3.23752291,105410.0,105400.0,0.0181]
[1750036167546,0.001,105410.0,105400.0,0.0181]
[1750036167700,0.0098747,105410.0,105400.0,0.0181]
[1750036167905,0.00987466,105410.0,105400.0,0.05506383]
[1750036168161,0.00987481,105410.0,105400.0,0.0181]
[1750036168365,0.001,105410.0,105400.0,0.0181]
[1750036168566,0.00987488,105410.0,105400.0,0.0181]
[1750036168741,0.00987487,105410.0,105400.0,0.0181]
[1750036168950,0.001,105410.0,105400.0,0.0181]
[1750036169159,3.23752263,105410.0,105400.0,0.003]
[1750036169402,3.23752267,105410.0,105400.0,0.003]
[1750036169772,3.24417858,105410.0,105400.0,0.003]
[1750036169932,3.228648,105410.0,105400.0,0.003]
[1750036170131,3.24417844,105410.0,105400.0,0.003]
[1750036170569,3.24417843,105410.0,105400.0,0.003]
[1750036170771,3.7118248,105410.0,105400.0,0.003]
[1750036170987,3.69629437,105410.0,105400.0,0.003]
[1750036171229,3.79253613,105410.0,105400.0,0.003]
[1750036171518,3.82326609,105410.0,105400.0,0.003]
[1750036171729,3.82326631,105410.0,105400.0,0.003]
[1750036171938,3.8232664,105410.0,105400.0,0.003]
[1750036172146,4.15439196,105410.0,105400.0,0.003]
[1750036172350,3.79019456,105410.0,105400.0,0.003]